bitfinex-derivatives/quotes_SOLF0:USTF0_20250409
["timestamp","ask_amount","ask_price","bid_price","bid_amount"]
[1744180040717,19.42930179,105.49,105.41,47.7453]
[1744180040918,19.42930179,105.51,105.43,9.4909]
[1744180041121,0.06311485,105.46,105.44,0.06347648]
[1744180041318,19.42930179,105.49,105.41,47.7453]
[1744180041518,0.06221804,105.46,105.44,0.06660639]
[1744180041719,19.42930179,105.53,105.45,44.78]
[1744180041919,19.42930179,105.53,105.46,5.5703]
[1744180042116,9.4837,105.52,105.48,9.4867]
[1744180042327,19.42930179,105.53,105.46,5.5703]
[1744180042725,19.42930179,105.51,105.46,5.5703]
[1744180042927,19.49182589,105.51,105.48,0.06864931]
[1744180043228,9.4855,105.5,105.48,0.06864931]
[1744180043527,19.49182589,105.51,105.48,0.06864931]
[1744180045830,9.486,105.49,105.48,0.06864931]
[1744180049128,28.91530179,105.49,105.48,0.06864931]
[1744180049329,9.4887,105.46,105.44,2.9821]
[1744180049530,19.42930179,105.49,105.42,52.6718]
[1744180049531,19.42930179,105.47,105.42,43.18]
[1744180049733,9.4891,105.46,105.42,43.18]
[1744180050037,19.42930179,105.47,105.42,43.18]
[1744180050238,62.60930179,105.49,105.42,43.18]
[1744180050534,0.06252304,105.46,105.43,0.06976253]
[1744180051137,0.06252304,105.46,105.43,9.56066253]
[1744180051631,0.06252304,105.46,105.44,9.4904]
[1744180054734,0.06252304,105.46,105.43,0.06976253]
[1744180056537,9.55162304,105.46,105.43,9.56066253]
[1744180057235,0.06252304,105.46,105.43,0.06976253]
[1744180057645,9.4901,105.45,105.43,0.06976253]
[1744180058637,0.06252304,105.46,105.43,0.06976253]
[1744180058844,0.06252304,105.46,105.43,9.56056253]
[1744180059139,0.06252304,105.46,105.43,0.06976253]
[1744180059336,9.55162304,105.46,105.43,0.06976253]
[1744180059540,0.06252304,105.46,105.43,0.06976253]
[1744180059836,9.55172304,105.46,105.43,0.06976253]
[1744180060038,9.55172304,105.46,105.43,9.56096253]
[1744180060441,0.06252304,105.46,105.43,9.56096253]
[1744180060640,0.06252304,105.46,105.44,9.4904]
[1744180062339,0.06252304,105.46,105.43,0.06976253]
[1744180063337,0.06252304,105.46,105.45,9.4896]
[1744180065844,9.55122304,105.46,105.44,2.9647]
[1744180066039,9.55122304,105.46,105.43,0.06976253]
[1744180066341,9.4905,105.44,105.43,0.06976253]
[1744180066546,0.06252304,105.46,105.43,0.06976253]
[1744180067240,0.06252304,105.46,105.43,9.56076253]
[1744180067750,9.55162304,105.46,105.43,9.56076253]
[1744180068253,0.06252304,105.46,105.43,0.06976253]
[1744180068954,9.49,105.45,105.43,0.06976253]
[1744180069251,0.06252304,105.46,105.43,0.06976253]
[1744180072554,9.4901,105.45,105.43,0.06976253]
[1744180072856,0.06252304,105.46,105.43,0.06976253]
[1744180073356,0.06252304,105.46,105.43,9.56066253]
[1744180073549,0.06252304,105.46,105.43,0.06976253]
[1744180073750,9.55152304,105.46,105.43,0.06976253]
[1744180074154,0.06252304,105.46,105.43,0.06976253]
[1744180075651,0.06252304,105.46,105.45,9.4896]
[1744180075849,13.08021953,105.5,105.45,41.6]
[1744180076057,52.62208358,105.5,105.45,41.6]
[1744180077262,0.0649963,105.49,105.46,0.06165877]
[1744180077554,0.0649963,105.49,105.46,5.74165877]
[1744180077856,0.0649963,105.49,105.47,9.4872]
[1744180078355,52.62208358,105.5,105.46,5.74165877]
[1744180078555,52.62208358,105.5,105.48,9.4863]
[1744180078760,28.91230179,105.53,105.48,51.0863]
[1744180078959,9.483,105.53,105.48,41.6]
[1744180079459,0.06568378,105.52,105.49,0.06219496]
[1744180079959,9.54958378,105.52,105.49,0.06219496]
[1744180080166,0.06568378,105.52,105.49,0.06219496]
[1744180080362,19.42930179,105.51,105.49,0.06219496]
[1744180080860,9.4851,105.5,105.49,0.06219496]
[1744180082459,28.91390179,105.51,105.49,0.06219496]
[1744180082660,0.06568378,105.52,105.49,0.06219496]
[1744180083260,9.54948378,105.52,105.49,0.06219496]
[1744180083563,0.06568378,105.52,105.49,0.06219496]
[1744180084058,9.54898378,105.52,105.49,0.06219496]
[1744180084961,9.4845,105.51,105.49,0.06219496]
[1744180085268,0.06568378,105.52,105.49,0.06219496]
[1744180085563,9.4851,105.5,105.49,0.06219496]
[1744180087456,41.64568378,105.52,105.49,0.06219496]
[1744180087457,0.06568378,105.52,105.49,0.06219496]
[1744180087964,9.54938378,105.52,105.49,0.06219496]
[1744180089763,0.06568378,105.52,105.49,0.06219496]
[1744180089956,0.06568378,105.52,105.49,2.83599496]
[1744180090455,0.06568378,105.52,105.49,12.32129496]
[1744180091166,9.54908378,105.52,105.49,12.32129496]
[1744180091355,0.06568378,105.52,105.49,2.83599496]
[1744180092464,0.06568378,105.52,105.5,9.4846]
[1744180093662,52.62208358,105.57,105.54,9.4808]
[1744180093859,52.62208358,105.57,105.51,5.7294]
[1744180094164,52.62208358,105.57,105.55,9.4797]
[1744180094560,52.62208358,105.57,105.54,41.58]
[1744180094967,52.68954771,105.57,105.54,41.64559698]
[1744180096971,0.06746413,105.57,105.56,9.4797]
[1744180098171,51.0553,105.61,105.57,9.4781]
[1744180098470,19.42930179,105.62,105.57,41.0]
[1744180098968,72.05138537,105.64,105.59,9.4766]
[1744180099170,9.4736,105.63,105.59,9.4766]
[1744180099374,0.06686056,105.62,105.6,0.06275968]
[1744180101077,0.06686056,105.62,105.6,41.06275968]
[1744180101276,0.06686056,105.62,105.61,9.4752]
[1744180103387,72.05138537,105.68,105.6,60.49206147]
[1744180103585,72.05138537,105.68,105.61,2.9409]
[1744180104081,19.42930179,105.68,105.61,2.9409]
[1744180104286,41.0,105.69,105.62,2.7665]
[1744180104488,52.62208358,105.73,105.67,19.42930179]
[1744180104787,52.62208358,105.73,105.68,46.6874]
[1744180105086,52.62208358,105.73,105.68,5.7074]
[1744180105286,52.62208358,105.73,105.69,9.4673]
[1744180105584,52.62208358,105.73,105.68,5.7074]
[1744180105783,41.04245135,105.72,105.7,0.06890733]
[1744180106376,50.50775135,105.72,105.7,0.06890733]
[1744180106683,0.06245135,105.72,105.7,0.06890733]
[1744180109494,0.06245135,105.72,105.7,9.53600733]
[1744180109887,93.58208358,105.79,105.7,0.06890733]
[1744180110190,93.58208358,105.79,105.71,2.7848]
[1744180110398,93.58208358,105.79,105.72,2.7927]
[1744180110590,30.95754971,105.78,105.72,2.7927]
[1744180110786,30.95754971,105.78,105.69,40.96]
[1744180111089,9.4646,105.73,105.72,0.06469403]
[1744180111288,50.4246,105.73,105.72,0.06469403]
[1744180111480,9.4654,105.72,105.67,5.5775]
[1744180111680,40.96,105.73,105.71,0.06880659]
[1744180111889,50.4252,105.73,105.68,9.4683]
[1744180112084,50.48881229,105.73,105.71,0.06412964]
[1744180112285,41.02361229,105.73,105.71,0.06412964]
[1744180112590,50.48851229,105.73,105.71,0.06412964]
[1744180113192,41.02361229,105.73,105.71,0.06412964]
[1744180114091,50.48851229,105.73,105.71,0.06412964]
[1744180114595,41.02361229,105.73,105.71,0.06412964]
[1744180115890,0.06361229,105.73,105.71,0.06412964]
[1744180117895,9.52861229,105.73,105.71,0.06412964]
[1744180118104,40.94,105.72,105.66,2.9871]
[1744180118398,71.89754971,105.72,105.63,5.891]
[1744180118585,9.4679,105.7,105.65,9.4711]
[1744180118788,30.95754971,105.7,105.63,5.891]
[1744180119098,40.42504971,105.7,105.65,9.471]
[1744180119302,0.06939927,105.68,105.65,9.54092658]
[1744180121799,0.06939927,105.68,105.65,0.06992658]
[1744180122398,9.53879927,105.68,105.65,0.06992658]
[1744180122698,0.06939927,105.68,105.65,0.06992658]
[1744180123702,9.53829927,105.68,105.65,0.06992658]
[1744180124196,0.06939927,105.68,105.65,0.06992658]
[1744180124803,9.4703,105.67,105.65,0.06992658]
[1744180125605,9.53869927,105.68,105.65,0.06992658]
[1744180129007,0.06939927,105.68,105.65,40.98992658]
[1744180130503,0.06939927,105.68,105.67,9.4698]
[1744180131110,13.08021953,105.71,105.69,9.4675]
[1744180131414,8.49431953,105.71,105.68,40.92]
[1744180131608,8.49431953,105.71,105.7,9.4671]
[1744180131801,39.54186405,105.72,105.69,66.27299968]
[1744180132307,39.60453799,105.72,105.71,9.4662]
[1744180133205,0.06267394,105.72,105.71,9.4662]
[1744180135308,0.06267394,105.72,105.7,9.4669]
[1744180135505,0.06267394,105.72,105.69,46.98529063]
[1744180136111,0.06267394,105.72,105.7,9.467]
[1744180137115,0.06267394,105.72,105.69,53.50429063]
[1744180137903,0.06267394,105.72,105.69,50.45329063]
[1744180138812,0.06267394,105.72,105.69,9.53329063]
[1744180140209,0.06267394,105.72,105.69,0.06579063]
[1744180141010,19.35349968,105.71,105.69,0.06579063]
[1744180141212,47.84007394,105.72,105.69,0.06579063]
[1744180141814,57.30577394,105.72,105.69,0.06579063]
[1744180142013,47.84007394,105.72,105.69,0.06579063]
[1744180142314,80.79734515,105.72,105.69,0.06579063]
[1744180142515,73.93994515,105.72,105.69,0.06579063]
[1744180143113,73.93994515,105.72,105.69,9.53339063]
[1744180144114,33.01994515,105.72,105.69,9.53339063]
[1744180144314,42.48544515,105.72,105.69,0.06579063]
[1744180144514,33.01994515,105.72,105.69,0.06579063]
[1744180144916,9.52847394,105.72,105.69,0.06579063]
[1744180145111,0.06267394,105.72,105.69,0.06579063]
[1744180146115,0.06267394,105.72,105.69,9.53339063]
[1744180146515,0.06267394,105.72,105.69,0.06579063]
[1744180146816,0.06267394,105.72,105.7,9.4671]
[1744180147111,9.52807394,105.72,105.69,9.53329063]
[1744180147314,0.06267394,105.72,105.69,0.06579063]
[1744180147614,0.06267394,105.72,105.7,9.4671]
[1744180148016,0.06267394,105.72,105.69,0.06579063]
[1744180148716,9.4662,105.71,105.69,0.06579063]
[1744180148908,40.98267394,105.72,105.69,0.06579063]
[1744180149816,9.4668,105.71,105.69,0.06579063]
[1744180150117,40.98267394,105.72,105.69,0.06579063]
[1744180150907,50.44847394,105.72,105.69,0.06579063]
[1744180153419,40.98267394,105.72,105.69,0.06579063]
[1744180154016,40.98267394,105.72,105.69,9.53329063]
[1744180155119,0.06267394,105.72,105.7,9.4671]
[1744180157614,0.06267394,105.72,105.69,0.06579063]
[1744180159220,0.06267394,105.72,105.69,9.53379063]
[1744180160222,0.06267394,105.72,105.7,9.4665]
[1744180160917,0.06267394,105.72,105.69,0.06579063]
[1744180161321,0.06267394,105.72,105.69,40.94579063]
[1744180161523,0.06267394,105.72,105.71,9.4662]
[1744180162822,0.06267394,105.72,105.7,9.4667]
[1744180165327,0.06267394,105.72,105.69,44.52419063]
[1744180165828,0.06267394,105.72,105.69,53.99139063]
[1744180166325,0.06267394,105.72,105.7,9.467]
[1744180166622,0.06267394,105.72,105.69,44.52419063]
[1744180166829,0.06267394,105.72,105.71,9.4662]
[1744180167831,33.10917399,105.74,105.69,63.87769031]
[1744180168722,33.10917399,105.74,105.69,44.52419063]
[1744180168928,0.06581091,105.73,105.69,3.64419063]
[1744180169427,0.06581091,105.73,105.7,9.4662]
[1744180170026,0.06581091,105.73,105.71,9.4662]
[1744180170723,0.06581091,105.73,105.7,9.4667]
[1744180170934,9.53031091,105.73,105.7,9.4667]
[1744180171123,0.06581091,105.73,105.7,9.4667]
[1744180171829,0.06581091,105.73,105.69,44.52419063]
[1744180172030,0.06581091,105.73,105.69,63.87769031]
[1744180172335,0.06581091,105.73,105.72,9.4653]
[1744180173829,0.06581091,105.73,105.71,9.52928746]
[1744180174135,0.06581091,105.73,105.71,0.06358746]
[1744180174534,0.06581091,105.73,105.72,9.4653]
[1744180180038,0.06581091,105.73,105.71,0.06358746]
[1744180181337,0.06581091,105.73,105.71,9.52978746]
[1744180181940,0.06581091,105.73,105.71,0.06358746]
[1744180182632,9.4666,105.71,105.67,9.4695]
[1744180183336,9.4656,105.72,105.67,9.4695]
[1744180183840,0.06918883,105.71,105.68,0.06212109]
[1744180184041,9.53558883,105.71,105.68,0.06212109]
[1744180185941,0.06918883,105.71,105.68,9.53092109]
[1744180186548,0.06918883,105.71,105.69,9.4678]
[1744180187242,0.06918883,105.71,105.68,0.06212109]
[1744180188243,9.4672,105.7,105.68,0.06212109]
[1744180189158,0.06918883,105.71,105.68,0.06212109]
[1744180189342,0.06918883,105.71,105.54,971.23349968]
[1744180189343,19.35349968,105.7,105.54,971.23349968]
[1744180189546,19.35349968,105.66,105.59,10.5101]
[1744180189752,9.4721,105.65,105.6,9.4761]
[1744180189953,60.17349968,105.66,105.59,10.5101]
[1744180190254,9.4708,105.66,105.61,9.4748]
[1744180190455,19.35349968,105.66,105.59,10.5101]
[1744180190647,0.07178767,105.65,105.62,0.0700771]
[1744180191350,9.4727,105.64,105.62,0.0700771]
[1744180191558,0.07178767,105.65,105.62,0.0700771]
[1744180192055,9.4729,105.64,105.62,0.0700771]
[1744180192655,0.07178767,105.65,105.62,0.0700771]
[1744180195758,0.07178767,105.65,105.63,9.473]
[1744180195958,0.07178767,105.65,105.62,0.0700771]
[1744180196258,0.07178767,105.65,105.64,9.4725]
[1744180196453,13.12225716,105.7,105.63,19.35349968]
[1744180196655,13.12225716,105.7,105.64,47.9597]
[1744180197063,32.47575684,105.7,105.64,47.9597]
[1744180197363,9.4693,105.68,105.64,57.4322]
[1744180197563,0.0675747,105.68,105.66,0.0654593]
[1744180198255,9.4699,105.67,105.66,0.0654593]
[1744180200456,19.42107438,105.68,105.66,0.0654593]
[1744180200659,19.42107438,105.68,105.66,5.93e-05]
[1744180200858,40.84,105.67,105.61,6.7864]
[1744180201053,19.35349968,105.66,105.61,3.367]
[1744180201459,40.84,105.67,105.61,3.367]
[1744180201660,50.3106,105.67,105.63,9.4733]
[1744180201860,0.06896362,105.66,105.64,0.07113783]
[1744180202360,9.54046362,105.66,105.64,0.07113783]
[1744180202560,0.06896362,105.66,105.64,0.07113783]
[1744180202754,62.13172121,105.7,105.66,9.4702]
[1744180202958,52.66412121,105.7,105.66,40.84]
[1744180203358,36.05912121,105.7,105.69,9.468]
[1744180203653,36.05912121,105.7,105.67,3.525]
[1744180203854,36.12921988,105.7,105.68,9.4688]
[1744180204668,13.57994402,105.72,105.69,40.84]
[1744180204868,261.9013991,105.73,105.69,60.19349968]
[1744180205166,261.9013991,105.73,105.69,40.84]
[1744180205471,19.35349968,105.75,105.66,19.35349968]
[1744180205669,19.35349968,105.73,105.64,26.11589968]
[1744180205861,0.06159162,105.72,105.69,0.06254851]
[1744180206060,9.4671,105.7,105.69,0.06254851]
[1744180206967,9.4665,105.71,105.69,0.06254851]
[1744180207873,9.53032492,105.72,105.69,0.06254851]
[1744180208265,0.06452492,105.72,105.69,0.06254851]
[1744180208468,9.4664,105.71,105.69,0.06254851]
[1744180208671,0.06452492,105.72,105.69,0.06254851]
[1744180210667,9.53002492,105.72,105.69,0.06254851]
[1744180211370,0.06452492,105.72,105.69,0.06254851]
[1744180211570,0.06452492,105.72,105.69,9.53044851]
[1744180213171,0.06452492,105.72,105.69,0.06254851]
[1744180213574,0.06452492,105.72,105.71,9.4662]
[1744180215968,0.06452492,105.72,105.69,40.90254851]
[1744180216173,0.06452492,105.72,105.7,9.4668]
[1744180216367,0.06452492,105.72,105.69,40.90254851]
[1744180216567,0.06452492,105.72,105.71,9.4662]
[1744180217370,0.06452492,105.72,105.7,9.4667]
[1744180217873,0.06452492,105.72,105.7,9.467]
[1744180218579,0.06452492,105.72,105.71,9.4662]
[1744180219769,0.06452492,105.72,105.7,9.4667]
[1744180220768,0.06452492,105.72,105.69,40.90254851]
[1744180221466,0.06452492,105.72,105.69,0.06254851]
[1744180221875,9.4666,105.71,105.69,0.06254851]
[1744180222169,0.06452492,105.72,105.69,0.06254851]
[1744180222575,0.06452492,105.72,105.7,9.4664]
[1744180223372,0.06452492,105.72,105.69,0.06254851]
[1744180223964,0.06452492,105.72,105.69,9.53054851]
[1744180224168,0.06452492,105.72,105.69,0.06254851]
[1744180225274,0.06452492,105.72,105.69,9.53034851]
[1744180225675,0.06452492,105.72,105.69,0.06254851]
[1744180226275,0.06452492,105.72,105.7,9.4666]
[1744180226774,0.06452492,105.72,105.69,9.53004851]
[1744180227366,9.52992492,105.72,105.69,9.53004851]
[1744180227878,9.52992492,105.72,105.69,0.06254851]
[1744180228780,9.52992492,105.72,105.69,9.53014851]
[1744180229579,9.4665,105.71,105.69,0.06254851]
[1744180229778,0.06452492,105.72,105.69,0.06254851]
[1744180230278,9.4669,105.71,105.69,0.06254851]
[1744180230779,0.06452492,105.72,105.69,0.06254851]
[1744180231177,9.4662,105.71,105.69,0.06254851]
[1744180231579,0.06452492,105.72,105.64,40.78]
[1744180231879,3.3926,105.7,105.64,40.78]
[1744180232072,3.3926,105.7,105.65,9.4714]
[1744180232274,9.4684,105.69,105.65,9.4714]
[1744180232476,19.35349968,105.69,105.64,40.78]
[1744180232774,0.06908156,105.68,105.66,0.07150673]
[1744180232972,9.4704,105.67,105.63,9.4734]
[1744180233380,19.35349968,105.69,105.63,9.4734]
[1744180233582,19.35349968,105.69,105.62,9.4738]
[1744180234186,0.06067229,105.67,105.64,0.07127696]
[1744180234479,60.19417197,105.67,105.61,50.2547]
[1744180234677,9.4716,105.65,105.61,50.2547]
[1744180235482,9.4716,105.65,105.62,9.4743]
[1744180235681,0.06160986,105.64,105.62,0.06499913]
[1744180235978,47.561,105.7,105.61,40.78]
[1744180236281,0.0600066,105.67,105.61,40.78]
[1744180236475,0.0600066,105.67,105.64,0.06396926]
[1744180237482,9.5305066,105.67,105.64,0.06396926]
[1744180237781,0.0600066,105.67,105.64,0.06396926]
[1744180237982,9.4712,105.66,105.64,0.06396926]
[1744180238585,9.5302066,105.67,105.64,0.06396926]
[1744180238979,0.0600066,105.67,105.64,0.06396926]
[1744180239785,9.4716,105.65,105.64,0.06396926]
[1744180239986,9.4716,105.65,105.61,40.78]
[1744180240187,9.4721,105.65,105.61,40.78]
[1744180240482,19.35349968,105.66,105.61,40.78]
[1744180240681,19.35349968,105.66,105.58,60.15349968]
[1744180241185,0.06728558,105.63,105.61,0.06778428]
[1744180242285,0.06728558,105.63,105.61,9.54298428]
[1744180242586,0.06728558,105.63,105.61,0.06778428]
[1744180243686,9.54128558,105.63,105.61,0.06778428]
[1744180244290,9.4743,105.62,105.61,0.06778428]
[1744180244686,0.06728558,105.63,105.55,40.8]
[1744180245088,9.4749,105.62,105.57,9.4779]
[1744180245286,9.4749,105.62,105.55,40.8]
[1744180245589,50.2749,105.62,105.55,40.8]
[1744180245787,9.4754,105.61,105.55,40.8]
[1744180245990,0.07228411,105.6,105.57,0.07235385]
[1744180248094,0.07228411,105.6,105.59,9.477]
[1744180248495,0.07228411,105.6,105.57,0.07235385]
[1744180249796,9.4775,105.59,105.57,0.07235385]
[1744180249998,3.46038411,105.6,105.57,0.07235385]
[1744180250795,9.4774,105.59,105.57,0.07235385]
[1744180251193,3.6115,105.59,105.52,622.13349968]
[1744180251395,9.4783,105.58,105.54,9.4808]
[1744180251595,40.78,105.58,105.54,9.4808]
[1744180251994,50.2582,105.58,105.54,9.4808]
[1744180252396,0.06144865,105.57,105.55,9.55209466]
[1744180252710,0.06144865,105.57,105.55,0.07149466]
[1744180253599,0.06144865,105.57,105.56,9.4797]
[1744180255004,0.06144865,105.57,105.55,9.55169466]
[1744180255204,0.06144865,105.57,105.55,0.07149466]
[1744180255591,0.06144865,105.57,105.55,9.55189466]
[1744180257404,0.06144865,105.57,105.55,0.07149466]
[1744180258704,9.54034865,105.57,105.55,0.07149466]
[1744180260213,0.06144865,105.57,105.49,0.2803]
[1744180260406,60.13349968,105.58,105.49,0.2803]
[1744180260594,60.13349968,105.58,105.53,9.482]
[1744180260800,9.4792,105.57,105.53,9.482]
[1744180261008,60.13349968,105.58,105.5,40.8]
[1744180261205,69.61179968,105.58,105.53,9.4818]
[1744180261400,0.06773257,105.55,105.53,9.55215801]
[1744180261601,0.06773257,105.55,105.53,0.07035801]
[1744180262307,0.06773257,105.55,105.53,9.55225801]
[1744180262508,0.06773257,105.55,105.53,0.07035801]
[1744180263007,0.06773257,105.55,105.54,9.4815]
[1744180265106,3.3881,105.6,105.57,9.4782]
[1744180265412,40.8,105.61,105.56,40.8]
[1744180265602,40.8,105.61,105.58,9.4775]
[1744180266210,40.86716708,105.61,105.58,9.54451775]
[1744180266811,40.86716708,105.61,105.58,0.06701775]
[1744180267003,0.06716708,105.61,105.58,0.06701775]
[1744180267205,0.06716708,105.61,105.59,9.477]
[1744180267511,0.06716708,105.61,105.58,0.06701775]
[1744180268711,0.06716708,105.61,105.6,9.4761]
[1744180269010,0.06716708,105.61,105.58,0.06701775]
[1744180269612,9.4761,105.6,105.58,0.06701775]
[1744180269914,0.06716708,105.61,105.58,0.06701775]
[1744180270414,0.06716708,105.61,105.58,9.54441775]
[1744180272315,9.54246708,105.61,105.58,0.06701775]
[1744180272507,0.06716708,105.61,105.58,0.06701775]
[1744180272915,0.06716708,105.61,105.58,9.54481775]
[1744180273515,0.06716708,105.61,105.58,0.06701775]
[1744180273815,9.54236708,105.61,105.58,0.06701775]
[1744180274916,0.06716708,105.61,105.58,9.54481775]
[1744180275111,0.06716708,105.61,105.58,0.06701775]
[1744180276717,9.54296708,105.61,105.58,0.06701775]
[1744180278419,0.06716708,105.61,105.58,9.54481775]
[1744180278716,0.06716708,105.61,105.58,0.06701775]
[1744180278919,0.06716708,105.61,105.58,9.54421775]
[1744180280019,9.54296708,105.61,105.58,9.54421775]
[1744180281023,9.4761,105.6,105.58,0.06701775]
[1744180282726,0.06716708,105.61,105.58,9.54481775]
[1744180284118,0.06716708,105.61,105.6,9.4761]
[1744180285420,217.13793195,105.68,105.6,40.76]
[1744180285613,9.4712,105.66,105.6,40.76]
[1744180285819,9.4712,105.66,105.62,9.4737]
[1744180286220,9.4717,105.65,105.62,9.4737]
[1744180286418,224.13443195,105.68,105.61,9.4749]
[1744180286623,0.06170425,105.65,105.63,0.06574429]
[1744180286917,9.4725,105.64,105.63,0.06574429]
[1744180287223,40.82170425,105.65,105.57,60.11349968]
[1744180287425,6.9965,105.63,105.57,60.11349968]
[1744180288024,6.9965,105.63,105.6,9.4755]
[1744180288222,0.07130822,105.61,105.6,9.4755]
[1744180288525,0.07130822,105.61,105.59,9.53644373]
[1744180288723,0.07130822,105.61,105.59,0.06024373]
[1744180289022,0.07130822,105.61,105.6,9.4761]
[1744180289218,0.07130822,105.61,105.59,0.06024373]
[1744180289420,0.07130822,105.61,105.54,40.76]
[1744180289615,9.4783,105.58,105.54,50.2412]
[1744180289816,9.4783,105.58,105.54,9.4812]
[1744180290013,44.4514,105.59,105.51,60.56359968]
[1744180290224,22.68999968,105.58,105.51,40.76]
[1744180290628,9.54320203,105.56,105.53,0.06282873]
[1744180292625,9.4806,105.55,105.53,0.06282873]
[1744180293828,40.82270203,105.56,105.53,0.06282873]
[1744180294230,50.30270203,105.56,105.53,0.06282873]
[1744180294930,40.82270203,105.56,105.53,0.06282873]
[1744180295532,60.17620171,105.56,105.53,0.06282873]
[1744180295831,9.4815,105.54,105.53,0.06282873]
[1744180296033,9.4815,105.54,105.47,60.23539968]
[1744180296225,60.11349968,105.56,105.47,60.23539968]
[1744180296632,9.4825,105.53,105.49,9.4855]
[1744180296829,19.35349968,105.52,105.44,541.08]
[1744180297030,3.3959,105.51,105.44,541.08]
[1744180297335,0.06260387,105.49,105.47,0.06133746]
[1744180298847,0.06260387,105.49,105.48,9.4869]
[1744180300654,7.0854,105.55,105.52,9.4831]
[1744180300948,7.0854,105.55,105.47,71.8453775]
[1744180301548,3.6079,105.55,105.53,9.4819]
[1744180301749,0.06533482,105.52,105.5,40.78]
[1744180302145,3.6079,105.55,105.5,40.78]
[1744180302346,0.05987689,105.52,105.51,9.4842]
[1744180304444,7.689e-05,105.52,105.51,9.4842]
[1744180304951,6.8504,105.58,105.55,9.4799]
[1744180305547,3.3879,105.58,105.53,40.78]
[1744180306245,0.06428517,105.57,105.54,0.06473418]
[1744180308952,8.517e-05,105.57,105.54,0.06473418]
[1744180309148,8.517e-05,105.57,105.56,9.4797]
[1744180309350,8.517e-05,105.57,105.56,50.2597]
[1744180315260,8.517e-05,105.57,105.56,9.4797]
[1744180318558,3.3969,105.64,105.56,9.48]
[1744180318748,3.3969,105.64,105.57,31.0653775]
[1744180318946,3.3969,105.64,105.62,9.4736]
[1744180319351,3.3969,105.64,105.58,40.74]
[1744180319562,3.4634723,105.64,105.62,0.06053392]
[1744180320153,0.0665723,105.64,105.62,0.06053392]
[1744180320359,0.0665723,105.64,105.62,40.80053392]
[1744180320658,0.0665723,105.64,105.63,9.4734]
[1744180321357,0.0665723,105.64,105.62,50.27433392]
[1744180321561,0.0665723,105.64,105.62,40.80053392]
[1744180322656,0.0665723,105.64,105.62,0.06053392]
[1744180322858,0.0665723,105.64,105.59,40.72]
[1744180323054,40.7865723,105.64,105.59,40.72]
[1744180323260,7.3034,105.63,105.56,40.72]
[1744180324068,0.0610991,105.61,105.58,0.06749893]
[1744180324364,0.0610991,105.61,105.6,9.4761]
[1744180327271,0.0610991,105.61,105.59,50.1966]
[1744180327763,0.0610991,105.61,105.59,40.72]
[1744180327964,0.0610991,105.61,105.6,9.4761]
[1744180330864,3.4288,105.66,105.59,60.09807753]
[1744180331066,6.8307,105.66,105.59,60.09807753]
[1744180331366,10.2972,105.66,105.62,9.4737]
[1744180331668,19.7683,105.66,105.59,60.09807753]
[1744180331968,10.2972,105.66,105.64,9.472]
[1744180332177,3.769e-05,105.64,105.62,40.72]
[1744180332475,6.8684,105.7,105.63,19.37807753]
[1744180332772,6.8684,105.7,105.62,40.72]
[1744180332971,6.8684,105.7,105.68,9.4683]
[1744180333472,6.93564483,105.7,105.68,9.53031063]
[1744180333771,6.93564483,105.7,105.69,9.468]
[1744180334472,0.06724483,105.7,105.69,9.468]
[1744180335574,0.06724483,105.7,105.69,50.188]
[1744180336270,0.06724483,105.7,105.69,40.72]
[1744180336474,0.06724483,105.7,105.68,0.06201063]
[1744180338771,0.06724483,105.7,105.68,9.53031063]
[1744180339174,0.06724483,105.7,105.69,9.468]
[1744180339568,6.9906,105.74,105.69,40.7]
[1744180339767,6.9906,105.74,105.72,9.4651]
[1744180340173,6.9906,105.74,105.69,40.7]
[1744180340578,6.9906,105.74,105.71,9.4657]
[1744180340877,0.0690646,105.73,105.7,0.06488845]
[1744180341576,0.0690646,105.73,105.7,9.53168845]
[1744180342178,0.0690646,105.73,105.7,0.06488845]
[1744180343180,0.0690646,105.73,105.71,9.4657]
[1744180343777,0.0690646,105.73,105.7,0.06488845]
[1744180344173,0.0690646,105.73,105.69,40.7]
[1744180344474,0.0690646,105.73,105.66,40.64]
[1744180344676,47.6306,105.74,105.66,40.64]
[1744180344872,9.4671,105.71,105.67,9.4698]
[1744180345077,78.58723145,105.74,105.66,40.64]
[1744180345378,9.4675,105.7,105.69,0.07265981]
[1744180345573,9.4675,105.7,105.66,50.1103]
[1744180345776,0.06567083,105.71,105.63,40.64]
[1744180346079,0.06567083,105.71,105.6,500.18]
[1744180346080,30.95663145,105.68,105.6,40.64]